fUSD/lending_fUSD_20240906
["ID","MTS","AMOUNT","RATE_DAILY","PERIOD"]
[337294706,1725586255269,-500.0,0.00014589,2]
[337294707,1725586255279,-500.0,0.00014589,2]
[337294708,1725586255288,-500.0,0.00014589,2]
[337294709,1725586255298,-500.0,0.00014589,2]
[337294710,1725586255307,-500.0,0.00014589,2]
[337294711,1725586255316,-500.0,0.00014589,2]
[337294712,1725586255325,-500.0,0.00014589,2]
[337294713,1725586255334,-500.0,0.00014589,2]
[337294714,1725586255343,-500.0,0.00014589,2]
[337294715,1725586255353,-500.0,0.00014589,2]
[337294716,1725586255362,-516.4400819,0.00014589,2]
[337294717,1725586255371,-500.0,0.00014589,2]
[337294718,1725586255380,-522.64135156,0.00014589,2]
[337294719,1725586255390,-500.0,0.00014589,2]
[337294720,1725586255401,-500.0,0.00014589,2]
[337294721,1725586255410,-500.0,0.00014589,2]
[337294722,1725586255420,-503.18458567,0.00014589,2]
[337294723,1725586255430,-500.0,0.00014589,2]
[337294724,1725586255442,-158.51,0.00014589,2]
[337294725,1725586255453,-508.6296577,0.00014589,2]
[337294726,1725586255462,-500.0,0.00014589,2]
[337294727,1725586255471,-645.62117732,0.00014589,2]
[337294728,1725586255480,-500.0,0.00014589,2]
[337294729,1725586255490,-500.0,0.00014589,2]
[337294730,1725586255626,-500.0,0.00014589,2]
[337294731,1725586255636,-500.0,0.00014589,2]
[337294732,1725586255646,-500.0,0.00014589,2]
[337294733,1725586255655,-501.88217672,0.00014589,2]
[337294734,1725586255664,-500.0,0.00014589,2]
[337294735,1725586255673,-500.0,0.00014589,2]
[337294736,1725586255682,-501.41650998,0.00014589,2]
[337294737,1725586255691,-500.0,0.00014589,2]
[337294738,1725586255701,-500.0,0.00014589,2]
[337294739,1725586255711,-500.0,0.00014589,2]
[337294740,1725586255721,-500.0,0.00014589,2]
[337294741,1725586255732,-500.0,0.00014589,2]
[337294742,1725586255741,-500.0,0.00014589,2]
[337294743,1725586255750,-500.0,0.00014589,2]
[337294744,1725586255759,-500.0,0.00014589,2]
[337294745,1725586255768,-500.0,0.00014589,2]
[337294746,1725586255778,-500.0,0.00014589,2]
[337294747,1725586255787,-500.0,0.00014589,2]
[337294748,1725586255796,-500.0,0.00014589,2]
[337294749,1725586255805,-500.0,0.00014589,2]
[337294750,1725586255814,-504.80871418,0.00014589,2]
[337294751,1725586255823,-500.0,0.00014589,2]
[337294752,1725586255832,-500.0,0.00014589,2]
[337294753,1725586255841,-500.0,0.00014589,2]
[337294754,1725586255850,-500.0,0.00014589,2]
[337294755,1725586255860,-500.0,0.00014589,2]
[337294756,1725586255870,-500.0,0.00014589,2]
[337294757,1725586255879,-502.61305832,0.00014589,2]
[337294758,1725586255888,-500.0,0.00014589,2]
[337294759,1725586255898,-500.0,0.00014589,2]
[337294760,1725586255907,-500.0,0.00014589,2]
[337294761,1725586255916,-500.0,0.00014589,2]
[337294762,1725586255925,-500.0,0.00014589,2]
[337294763,1725586255934,-500.0,0.00014589,2]
[337294764,1725586255943,-500.0,0.00014589,2]
[337294765,1725586255953,-500.0,0.00014589,2]
[337294766,1725586255962,-500.0,0.00014589,2]
[337294767,1725586255971,-500.0,0.00014589,2]
[337294768,1725586255980,-591.82222892,0.00014589,2]
[337294769,1725586255989,-500.0,0.00014589,2]
[337294770,1725586255999,-500.0,0.00014589,2]
[337294771,1725586256008,-500.0,0.00014589,2]
[337294772,1725586256017,-500.0,0.00014589,2]
[337294773,1725586256028,-500.0,0.00014589,2]
[337294774,1725586256037,-500.0,0.00014589,2]
[337294775,1725586256046,-211.4985463,0.00014589,2]
[337294776,1725586256085,-288.5014537,0.00014589,2]
[337294777,1725586256094,-45.78833664,0.00014589,2]
[337294778,1725586256110,-454.21166336,0.00014589,2]
[337294779,1725586256119,-500.0,0.00014589,2]
[337294780,1725586256128,-500.0,0.00014589,2]
[337294781,1725586256138,-152.85325579,0.00014589,2]
[337294782,1725586256151,-500.0,0.00014589,2]
[337294783,1725586256159,-500.0,0.00014589,2]
[337294784,1725586256169,-500.0,0.00014589,2]
[337294785,1725586256178,-500.0,0.00014589,2]
[337294786,1725586256187,-500.0,0.00014589,2]
[337294787,1725586256197,-508.13523052,0.00014589,2]
[337294788,1725586256206,-500.0,0.00014589,2]
[337294789,1725586256215,-500.0,0.00014589,2]
[337294790,1725586256226,-500.0,0.00014589,2]
[337294791,1725586256236,-500.0,0.00014589,2]
[337294792,1725586256245,-503.04288166,0.00014589,2]
[337294793,1725586256256,-500.0,0.00014589,2]
[337294794,1725586256265,-500.0,0.00014589,2]
[337294795,1725586256276,-505.23540957,0.00014589,2]
[337294796,1725586256295,-500.0,0.00014589,2]
[337294797,1725586256304,-500.0,0.00014589,2]
[337294798,1725586256313,-500.0,0.00014589,2]
[337294799,1725586256322,-500.0,0.00014589,2]
[337294800,1725586256331,-525.98163521,0.00014589,2]
[337294801,1725586256340,-500.0,0.00014589,2]
[337294802,1725586256349,-500.0,0.00014589,2]
[337294803,1725586256358,-500.0,0.00014589,2]
[337294804,1725586256367,-500.0,0.00014589,2]
[337294805,1725586256376,-500.0,0.00014589,2]
[337294806,1725586256386,-500.0,0.00014589,2]
[337294807,1725586256395,-500.0,0.00014589,2]
[337294808,1725586256405,-500.0,0.00014589,2]
[337294809,1725586256414,-500.0,0.00014589,2]
[337294810,1725586256424,-500.0,0.00014589,2]
[337294811,1725586256433,-510.76760494,0.00014589,2]
[337294812,1725586256443,-500.0,0.00014589,2]
[337294813,1725586256452,-500.0,0.00014589,2]
[337294814,1725586256462,-500.0,0.00014589,2]
[337294815,1725586256471,-500.0,0.00014589,2]
[337294816,1725586256481,-500.0,0.00014589,2]
[337294817,1725586256490,-500.0,0.00014589,2]
[337294818,1725586256499,-500.57831988,0.00014589,2]
[337294819,1725586256509,-500.0,0.00014589,2]
[337294820,1725586256518,-500.0,0.00014589,2]
[337294821,1725586256530,-500.0,0.00014589,2]
[337294822,1725586256539,-500.0,0.00014589,2]
[337294823,1725586256549,-507.75323236,0.00014589,2]
[337294824,1725586256558,-500.0,0.00014589,2]
[337294825,1725586256568,-500.0,0.00014589,2]
[337294826,1725586256577,-502.2113274,0.00014589,2]
[337294827,1725586256586,-500.0,0.00014589,2]
[337294828,1725586256595,-500.0,0.00014589,2]
[337294829,1725586256605,-500.0,0.00014589,2]
[337294830,1725586256615,-500.0,0.00014589,2]
[337294831,1725586256624,-500.0,0.00014589,2]
[337294832,1725586256634,-500.0,0.00014589,2]
[337294833,1725586256644,-500.0,0.00014589,2]
[337294834,1725586256653,-500.0,0.00014589,2]
[337294835,1725586256662,-500.0,0.00014589,2]
[337294836,1725586256672,-500.0,0.00014589,2]
[337294837,1725586256681,-500.0,0.00014589,2]
[337294838,1725586256690,-508.16643297,0.00014589,2]
[337294839,1725586256700,-506.54794339,0.00014589,2]
[337294840,1725586256710,-500.0,0.00014589,2]
[337294841,1725586256719,-500.0,0.00014589,2]
[337294842,1725586256729,-500.0,0.00014589,2]
[337294843,1725586256739,-500.0,0.00014589,2]
[337294844,1725586256748,-500.0,0.00014589,2]
[337294845,1725586256757,-500.0,0.00014589,2]
[337294846,1725586256767,-520.28789819,0.00014589,2]
[337294847,1725586256776,-505.93702789,0.00014589,2]
[337294848,1725586256786,-500.0,0.00014589,2]
[337294849,1725586256795,-500.0,0.00014589,2]
[337294850,1725586256805,-505.94971718,0.00014589,2]
[337294851,1725586256815,-500.0,0.00014589,2]
[337294852,1725586256824,-500.0,0.00014589,2]
[337294853,1725586256834,-500.0,0.00014589,2]
[337294854,1725586256844,-500.0,0.00014589,2]
[337294855,1725586256854,-500.0,0.00014589,2]
[337294856,1725586256864,-500.0,0.00014589,2]
[337294857,1725586256874,-500.0,0.00014589,2]
[337294858,1725586256884,-500.0,0.00014589,2]
[337294859,1725586256894,-500.0,0.00014589,2]
[337294860,1725586256905,-500.0,0.00014589,2]
[337294861,1725586256914,-500.0,0.00014589,2]
[337294862,1725586256923,-500.0,0.00014589,2]
[337294863,1725586256933,-500.0,0.00014589,2]
[337294864,1725586256943,-500.0,0.00014589,2]
[337294865,1725586256953,-500.0,0.00014589,2]
[337294866,1725586256962,-500.0,0.00014589,2]
[337294867,1725586256971,-687.0,0.00014589,2]
[337294868,1725586256981,-5064.3935747,0.00014593,2]
[337294869,1725586256991,-4845.5310647,0.00014593,2]
[337294870,1725586257000,-10072.2843869,0.00014593,2]
[337294871,1725586257010,-341.9677222,0.00014593,2]
[337294872,1725586257019,-457.5426657,0.00014593,2]
[337294873,1725586257028,-500.0,0.00014595,2]
[337294874,1725586257038,-500.0,0.00014595,2]
[337294875,1725586257047,-500.0,0.00014595,2]
[337294876,1725586257057,-501.93,0.00014595,2]
[337294877,1725586257066,-606.32,0.00014595,2]
[337294878,1725586257076,-1921.0,0.00014596,2]
[337294879,1725586257086,-150.841,0.00014596,2]
[337294880,1725586257095,-624.0,0.00014596,2]
[337294881,1725586257105,-1144.304,0.00014596,2]
[337294882,1725586257114,-448.28,0.00014596,2]
[337294883,1725586257123,-874.96,0.00014596,2]
[337294884,1725586257132,-500.0,0.00014596,2]
[337294885,1725586257144,-584.04,0.00014596,2]
[337294886,1725586257154,-500.0,0.00014596,2]
[337294887,1725586257164,-500.0,0.00014596,2]
[337294888,1725586257174,-500.0,0.00014596,2]
[337294889,1725586257184,-500.0,0.00014596,2]
[337294890,1725586257194,-554.82,0.00014596,2]
[337294891,1725586257203,-500.0,0.00014596,2]
[337294892,1725586257212,-500.0,0.00014596,2]
[337294893,1725586257222,-500.0,0.00014596,2]
[337294894,1725586257233,-500.0,0.00014596,2]
[337294895,1725586257242,-500.0,0.00014596,2]
[337294896,1725586257251,-500.0,0.00014596,2]
[337294897,1725586257261,-500.0,0.00014596,2]
[337294898,1725586257270,-646.6,0.00014596,2]
[337294899,1725586257280,-500.0,0.00014596,2]
[337294900,1725586257290,-500.0,0.00014596,2]
[337294901,1725586257299,-500.0,0.00014596,2]
[337294902,1725586257309,-390.72,0.00014596,2]
[337294903,1725586257318,-500.0,0.00014596,2]
[337294904,1725586257328,-500.0,0.00014596,2]
[337294905,1725586257337,-268.83,0.00014596,2]
[337294906,1725586257348,-508.78710412,0.00014596,2]
[337294907,1725586257357,-514.29898769,0.00014596,2]
[337294908,1725586257367,-502.88405016,0.00014598,2]
[337294909,1725586257377,-502.8258662,0.00014598,2]
[337294910,1725586257386,-500.0,0.00014598,2]
[337294911,1725586257396,-503.4935734,0.00014598,2]
[337294912,1725586257404,-500.0,0.00014598,2]
[337294913,1725586257414,-501.65281434,0.00014598,2]
[337294914,1725586257423,-465.40233228,0.00014598,2]
[337294915,1725586257433,-500.0,0.00014598,2]
[337294916,1725586257443,-500.0,0.00014598,2]
[337294917,1725586257453,-500.0,0.00014598,2]
[337294918,1725586257463,-503.4019388,0.00014598,2]
[337294919,1725586257472,-307.36,0.00014598,2]
[337294920,1725586257482,-500.0,0.00014598,2]
[337294921,1725586257492,-500.0,0.00014598,2]
[337294922,1725586257502,-500.0,0.00014598,2]
[337294923,1725586257511,-500.0,0.00014598,2]
[337294924,1725586257522,-500.0,0.00014598,2]
[337294925,1725586257533,-500.0,0.00014598,2]
[337294926,1725586257542,-500.0,0.00014598,2]
[337294927,1725586257551,-500.0,0.00014598,2]
[337294928,1725586257560,-500.0,0.00014598,2]
[337294929,1725586257570,-500.0,0.00014598,2]
[337294930,1725586257580,-500.0,0.00014598,2]
[337294931,1725586257590,-500.0,0.00014598,2]
[337294932,1725586257600,-500.0,0.00014598,2]
[337294933,1725586257610,-500.0,0.00014598,2]
[337294934,1725586257619,-500.0,0.00014598,2]
[337294935,1725586257629,-432.85,0.00014598,2]
[337294936,1725586257639,-563.75,0.00014598,2]
[337294937,1725586257648,-500.0,0.00014598,2]
[337294938,1725586257657,-500.0,0.00014598,2]
[337294939,1725586257667,-500.0,0.00014598,2]
[337294940,1725586257677,-509.86,0.00014598,2]
[337294941,1725586257687,-500.0,0.00014598,2]
[337294942,1725586257696,-500.0,0.00014598,2]
[337294943,1725586257706,-500.0,0.00014598,2]
[337294944,1725586257715,-500.0,0.00014598,2]
[337294945,1725586257724,-500.0,0.00014598,2]
[337294946,1725586257733,-500.0,0.00014598,2]
[337294947,1725586257744,-500.0,0.00014598,2]
[337294948,1725586257754,-500.0,0.00014598,2]
[337294949,1725586257763,-500.0,0.00014598,2]
[337294950,1725586257773,-500.0,0.00014598,2]
[337294951,1725586257783,-500.0,0.00014598,2]
[337294952,1725586257792,-500.0,0.00014598,2]
[337294953,1725586257802,-500.0,0.00014598,2]
[337294954,1725586257812,-500.0,0.00014598,2]
[337294955,1725586257822,-500.0,0.00014598,2]
[337294956,1725586257831,-500.0,0.00014598,2]
[337294957,1725586257840,-500.0,0.00014598,2]
[337294958,1725586257850,-500.0,0.00014598,2]
[337294959,1725586257860,-500.0,0.00014598,2]
[337294960,1725586257870,-500.0,0.00014598,2]
[337294961,1725586257879,-500.0,0.00014598,2]
[337294962,1725586257889,-561.06,0.00014598,2]
[337294963,1725586257899,-500.0,0.00014598,2]
[337294964,1725586257908,-523.86821909,0.00014598,2]
[337294965,1725586257918,-500.0,0.00014598,2]
[337294966,1725586257927,-500.0,0.00014598,2]
[337294967,1725586257938,-500.0,0.00014598,2]
[337294968,1725586257947,-500.0,0.00014598,2]
[337294969,1725586257956,-500.0,0.00014598,2]
[337294970,1725586257966,-500.0,0.00014598,2]
[337294971,1725586257975,-500.0,0.00014598,2]
[337294972,1725586257985,-500.0,0.00014598,2]
[337294973,1725586257995,-500.0,0.00014598,2]
[337294974,1725586258004,-500.0,0.00014598,2]
[337294975,1725586258014,-500.0,0.00014598,2]
[337294976,1725586258022,-500.0,0.00014598,2]
[337294977,1725586258032,-500.0,0.00014598,2]
[337294978,1725586258042,-500.0,0.00014598,2]
[337294979,1725586258051,-500.0,0.00014598,2]
[337294980,1725586258060,-333.28,0.00014598,2]
[337294981,1725586258070,-500.0,0.00014598,2]
[337294982,1725586258080,-500.0,0.00014598,2]
[337294983,1725586258089,-549.4,0.00014598,2]
[337294984,1725586258098,-500.0,0.00014598,2]
[337294985,1725586258107,-500.0,0.00014598,2]
[337294986,1725586258116,-500.0,0.00014598,2]
[337294987,1725586258125,-500.0,0.00014598,2]
[337294988,1725586258135,-219.19272626,0.00014598,2]
[337294989,1725586258147,-500.0,0.00014598,2]
[337294990,1725586258157,-501.2090737,0.00014598,2]
[337294991,1725586258166,-546.17974539,0.00014598,2]
[337294992,1725586258175,-500.0,0.00014598,2]
[337294993,1725586258185,-500.0,0.00014598,2]
[337294994,1725586258320,-500.0,0.00014598,2]
[337294995,1725586258331,-500.0,0.00014598,2]
[337294996,1725586258340,-506.35924084,0.00014598,2]
[337294997,1725586258350,-500.0,0.00014598,2]
[337294998,1725586258360,-812.87,0.00014598,2]
[337294999,1725586258370,-513.35566815,0.00014598,2]
[337295000,1725586258379,-500.0,0.00014599,2]
[337295001,1725586258388,-500.0,0.00014599,2]
[337295002,1725586258398,-478.05,0.00014599,2]
[337295003,1725586258407,-500.0,0.00014599,2]
[337295004,1725586258416,-500.0,0.00014599,2]
[337295005,1725586258426,-500.0,0.00014599,2]
[337295006,1725586258435,-500.0,0.00014599,2]
[337295007,1725586258445,-500.0,0.00014599,2]
[337295008,1725586258455,-500.0,0.00014599,2]
[337295009,1725586258465,-181.16,0.00014599,2]
[337295010,1725586258474,-500.0,0.00014599,2]
[337295011,1725586258484,-163.95,0.00014599,2]
[337295012,1725586258493,-243.1,0.00014599,2]
[337295013,1725586258503,-552.82,0.00014599,2]
[337295014,1725586258512,-500.0,0.00014599,2]
[337295015,1725586258522,-500.0,0.00014599,2]
[337295016,1725586258531,-532.06,0.00014599,2]
[337295017,1725586258541,-176.65,0.00014599,2]
[337295018,1725586258550,-500.0,0.00014599,2]
[337295019,1725586258559,-500.0,0.00014599,2]
[337295020,1725586258569,-500.0,0.00014599,2]
[337295021,1725586258578,-500.0,0.00014599,2]
[337295022,1725586258587,-500.0,0.00014599,2]
[337295023,1725586258596,-500.0,0.00014599,2]
[337295024,1725586258606,-514.4,0.00014599,2]
[337295025,1725586258617,-500.0,0.00014599,2]
[337295026,1725586258627,-500.0,0.00014599,2]
[337295027,1725586258637,-500.0,0.00014599,2]
[337295028,1725586258648,-415.7,0.00014599,2]
[337295029,1725586258657,-500.0,0.00014599,2]
[337295030,1725586258667,-500.0,0.00014599,2]
[337295031,1725586258678,-500.0,0.00014599,2]
[337295032,1725586258689,-383.15,0.00014599,2]
[337295033,1725586258700,-500.0,0.00014599,2]
[337295034,1725586258711,-500.0,0.00014599,2]
[337295035,1725586258721,-365.15,0.00014599,2]
[337295036,1725586258731,-596.05,0.00014599,2]
[337295037,1725586258741,-500.0,0.00014599,2]
[337295038,1725586258750,-500.0,0.00014599,2]
[337295039,1725586258760,-518.75,0.00014599,2]
[337295040,1725586258769,-500.0,0.00014599,2]
[337295041,1725586258780,-500.0,0.00014599,2]
[337295042,1725586258789,-500.0,0.00014599,2]
[337295043,1725586258798,-500.0,0.00014599,2]
[337295044,1725586258809,-500.0,0.00014599,2]
[337295045,1725586258822,-500.0,0.00014599,2]
[337295046,1725586258833,-500.0,0.00014599,2]
[337295047,1725586258843,-500.0,0.00014599,2]
[337295048,1725586258854,-153.25,0.00014599,2]
[337295049,1725586258864,-500.0,0.00014599,2]
[337295050,1725586258876,-500.0,0.00014599,2]
[337295051,1725586258887,-193.05449398,0.00014599,2]
[337295052,1725586258898,-500.0,0.00014599,2]
[337295053,1725586258907,-500.0,0.00014599,2]
[337295054,1725586258916,-500.0,0.00014599,2]
[337295055,1725586258925,-500.0,0.00014599,2]
[337295056,1725586258934,-500.0,0.00014599,2]
[337295057,1725586258943,-500.0,0.00014599,2]
[337295058,1725586258953,-440.25,0.00014599,2]
[337295059,1725586258963,-500.0,0.00014599,2]
[337295060,1725586258973,-198.3,0.00014599,2]
[337295061,1725586258982,-500.0,0.00014599,2]
[337295062,1725586258991,-500.0,0.00014599,2]
[337295063,1725586259001,-500.0,0.00014599,2]
[337295064,1725586259010,-500.0,0.00014599,2]
[337295065,1725586259023,-359.95,0.00014599,2]
[337295066,1725586259032,-500.0,0.00014599,2]
[337295067,1725586259042,-500.0,0.00014599,2]
[337295068,1725586259051,-500.0,0.00014599,2]
[337295069,1725586259062,-459.45,0.00014599,2]
[337295070,1725586259071,-500.0,0.00014599,2]
[337295071,1725586259080,-500.0,0.00014599,2]
[337295072,1725586259089,-452.45,0.00014599,2]
[337295073,1725586259098,-348.56,0.00014599,2]
[337295074,1725586259107,-500.0,0.00014599,2]
[337295075,1725586259116,-500.0,0.00014599,2]
[337295076,1725586259125,-500.0,0.00014599,2]
[337295077,1725586259134,-500.0,0.00014599,2]
[337295078,1725586259145,-500.0,0.00014599,2]
[337295079,1725586259154,-500.0,0.00014599,2]
[337295080,1725586259163,-500.0,0.00014599,2]
[337295081,1725586259172,-500.0,0.00014599,2]
[337295082,1725586259182,-500.0,0.00014599,2]
[337295083,1725586259192,-500.0,0.00014599,2]
[337295084,1725586259201,-500.0,0.00014599,2]
[337295085,1725586259210,-500.0,0.00014599,2]
[337295086,1725586259219,-474.7,0.00014599,2]
[337295087,1725586259230,-500.0,0.00014599,2]
[337295088,1725586259240,-168.05,0.00014599,2]
[337295089,1725586259250,-500.0,0.00014599,2]
[337295090,1725586259259,-500.0,0.00014599,2]
[337295091,1725586259268,-329.9,0.00014599,2]
[337295092,1725586259278,-432.04,0.00014599,2]
[337295093,1725586259288,-545.35,0.00014599,2]
[337295094,1725586259297,-450.55460519,0.00014599,2]
[337295095,1725586259306,-500.0,0.00014599,2]
[337295096,1725586259315,-374.59181509,0.00014599,2]
[337295097,1725586259720,-263.44501933,0.00014564,2]
[337295099,1725586363936,155.08,0.00011723,2]
[337295100,1725586364383,750.0,0.00011,2]
[337295101,1725586365477,800.0,0.00013,2]
[337295104,1725586498607,216.0,0.00027,120]
[337295108,1725586741709,193.43,0.00010959,2]
[337295111,1725586884346,155.14,0.00011608,2]
[337295114,1725587008497,508.947681,0.00026,120]
[337295115,1725587102621,150.0,0.00013118,2]
[337295116,1725587107729,150.0,0.00013118,2]
[337295117,1725587116762,150.0,0.00013118,2]
[337295118,1725587127481,151.24012352,0.00013118,2]
[337295126,1725587233967,150.5,0.00014589,120]
[337295127,1725587234423,259.34,0.00014579,120]
[337295143,1725587411191,155.14,0.00011407,2]
[337295147,1725587432411,-150.0,0.0001328,2]
[337295148,1725587432421,-157.41,0.00013283,2]
[337295149,1725587432431,-399.66731665,0.00013348,2]
[337295150,1725587432443,-334.09268335,0.00013348,2]
[337295151,1725587432452,-150.0,0.00013442,2]
[337295152,1725587432461,-145.90645879,0.00013511,2]
[337295153,1725587432473,-54.13354121,0.00013511,2]
[337295154,1725587432482,-172.63,0.00013513,2]
[337295155,1725587432492,-250.0,0.00013522,2]
[337295156,1725587432502,-266.24,0.00013532,2]
[337295157,1725587432511,-250.0,0.00013547,2]
[337295158,1725587432521,-226.24,0.00013592,2]
[337295159,1725587432532,-150.0,0.00013604,2]
[337295160,1725587432542,-150.0,0.00013604,2]
[337295161,1725587432555,-841.61,0.00013699,2]
[337295162,1725587432564,-150.0,0.00013766,2]
[337295163,1725587432575,-150.0,0.00013847,2]
[337295164,1725587432584,-150.0,0.00013928,2]
[337295165,1725587432593,-2505.0,0.00014,2]
[337295166,1725587432602,-150.0,0.00014089,2]
[337295167,1725587432612,-150.0,0.00014089,2]
[337295168,1725587432624,-150.0,0.00014251,2]
[337295169,1725587432633,-150.0,0.00014331,2]
[337295170,1725587432643,-189.20719667,0.00014381,2]
[337295171,1725587432653,-796.12746383,0.00014387,2]
[337295172,1725587432662,-150.0,0.00014413,2]
[337295173,1725587432672,-300.0,0.00014449,2]
[337295174,1725587432682,-3000.0,0.0001445,2]
[337295175,1725587432691,-150.0,0.00014453,2]
[337295176,1725587432701,-158.44633,0.00014453,2]
[337295177,1725587432712,-150.0,0.00014463,2]
[337295178,1725587432722,-989.085809,0.00014464,2]
[337295179,1725587432731,-240.4368,0.00014464,2]
[337295180,1725587432740,-559.1015,0.00014464,2]
[337295181,1725587432750,-11220.8002,0.00014464,2]
[337295182,1725587432760,-341.57095806,0.00014464,2]
[337295183,1725587432769,-350.6906,0.00014464,2]
[337295184,1725587432778,-3047.4469,0.00014464,2]
[337295185,1725587432787,-1474.312,0.00014464,2]
[337295186,1725587432796,-698.5927,0.00014469,2]
[337295187,1725587432806,-262.22047239,0.0001447,2]
[337295188,1725587432815,-500.0,0.00014476,2]
[337295189,1725587432825,-2295.5554,0.00014476,2]
[337295190,1725587432835,-1000.0,0.00014476,2]
[337295191,1725587432845,-214.0923,0.00014488,2]
[337295192,1725587432855,-3457.17631548,0.000145,2]
[337295193,1725587432865,-989.085809,0.00014512,2]
[337295194,1725587432875,-9650.4764863,0.00014554,3]
[337295195,1725587432887,-577.17401886,0.00014554,3]
[337295196,1725587432899,-1231.85132041,0.00014554,3]
[337295197,1725587432911,-311.84172578,0.00014554,3]
[337295198,1725587432922,-833.36001832,0.00014554,3]
[337295199,1725587432933,-696.93784984,0.00014554,3]
[337295202,1725587432953,-332.75527609,0.00014554,3]
[337295204,1725587432964,-1714.72611778,0.00014554,3]
[337295206,1725587432976,-14495.83567572,0.00014554,3]
[337295208,1725587432986,-14922.4792445,0.00014558,3]
[337295210,1725587432995,-989.085809,0.00014561,2]
[337295213,1725587433005,-506.59775076,0.00014563,2]
[337295214,1725587433015,-500.0,0.00014563,2]
[337295217,1725587433024,-513.59834379,0.00014563,2]
[337295218,1725587433034,-517.35043548,0.00014563,2]
[337295220,1725587433044,-500.0,0.00014563,2]
[337295223,1725587433054,-500.0,0.00014563,2]
[337295225,1725587433063,-511.51335039,0.00014563,2]
[337295226,1725587433073,-501.78258208,0.00014563,2]
[337295227,1725587433082,-504.37921124,0.00014563,2]
[337295228,1725587433302,-500.0,0.00014563,2]
[337295229,1725587433313,-500.0,0.00014563,2]
[337295230,1725587433323,-500.0,0.00014563,2]
[337295231,1725587433332,-501.64503383,0.00014563,2]
[337295232,1725587433342,-500.0,0.00014563,2]
[337295233,1725587433351,-502.54629155,0.00014563,2]
[337295234,1725587433361,-500.62422378,0.00014563,2]
[337295235,1725587433370,-508.98649157,0.00014563,2]
[337295236,1725587433380,-501.99563083,0.00014563,2]
[337295237,1725587433389,-500.91453146,0.00014563,2]
[337295238,1725587433398,-501.59300546,0.00014563,2]
[337295239,1725587433407,-510.59116688,0.00014563,2]
[337295240,1725587433416,-501.94683338,0.00014563,2]
[337295241,1725587433426,-503.78161958,0.00014563,2]
[337295242,1725587433436,-502.34654173,0.00014563,2]
[337295243,1725587433445,-502.75955167,0.00014563,2]
[337295244,1725587433454,-501.09179989,0.00014563,2]
[337295245,1725587433463,-501.59896726,0.00014563,2]
[337295246,1725587433473,-502.49123113,0.00014563,2]
[337295247,1725587433484,-502.77345608,0.00014563,2]
[337295248,1725587433494,-500.68026262,0.00014563,2]
[337295249,1725587433504,-500.0,0.00014563,2]
[337295250,1725587433514,-503.0978711,0.00014563,2]
[337295251,1725587433523,-504.21469838,0.00014563,2]
[337295252,1725587433535,-502.55374495,0.00014563,2]
[337295253,1725587433545,-500.65101244,0.00014563,2]
[337295254,1725587433554,-501.28952567,0.00014563,2]